[Event "Faroes Open 2018"]
[Site "Sandavagur"]
[Date "2018.07.07"]
[Round "1"]
[White "Petersen, Elias"]
[Black "Nielsen, Torkil"]
[Result "0-1"]
[ECO "C50"]
[WhiteElo "1035"]
[BlackElo "2115"]
[Annotator "NA"]
[PlyCount "44"]
[EventDate "2018.07.07"]
[EventType "swiss"]
[EventCountry "FAI"]
[SourceTitle "playchess.com"]
[Source "ChessBase"]
[SourceQuality "1"]
[TimeControl "40/5400+30:900+30"]

1. e4 {[%emt 0:00:00]} e5 {[%emt 0:00:00]} 2. Nf3 {[%emt 0:00:00]} Nc6 {[%emt 0:00:00]} 3. Bc4 {[%emt 0:00:24]} Nf6 {[%emt 0:00:05]} 4. d3 {[%emt 0:00:16]} Bc5 {[%emt 0:00:33]} 5. O-O {[%emt 0:00:26]} d6 {[%emt 0:00:22]} 6. a3 {[%emt 0:00:50]} Bg4 {[%emt 0:01:05]} 7. h3 {[%emt 0:00:17]} Bh5 {[%emt 0:00:18]} 8. Nbd2 {[%emt 0:00:35]} Qd7 {[%emt 0:01:02]} 9. b4 {[%emt 0:01:10]} Bb6 {[%emt 0:01:56]} 10. Bb2 {[%emt 0:00:50]} Ne7 {[%emt 0:01:12]} 11. c3 {[%emt 0:01:00]} g5 {[%emt 0:01:57]} 12. Qc2 {[%emt 0:00:36]} g4 {[%emt 0:00:44]} 13. hxg4 {[%emt 0:00:52]} Qxg4 {[%emt 0:00:10]} 14. Nh2 {[%emt 0:00:38]} Qf4 {[%emt 0:02:31]} 15. Bc1 {[%emt 0:02:57]} Rg8 {[%emt 0:04:16]} 16. Ndf3 {[%emt 0:01:48]} Qg3 {[%emt 0:00:18]} 17. Ng5 {[%emt 0:02:16]} Rxg5 {[%emt 0:03:19]} 18. Bxg5 {[%emt 0:00:58]} Qxg5 {[%emt 0:00:06]} 19. Kh1 {[%emt 0:01:50]} O-O-O {[%emt 0:00:51]} 20. Bb3 {[%emt 0:03:24]} Qh4 {[%emt 0:00:51]} 21. c4 {[%emt 0:01:34]} Ng4 22. g3 {[%emt 0:00:59]} Qxh2# 0-1